[Event "Titled Tuesday Blitz August 22 Early 2023"]
[White "Erigaisi Arjun"]
[Black "Esipenko, Andrey"]
[WhiteFideId "35009192"]
[BlackFideId "24175439"]
[WhiteElo "3083"]
[BlackElo "2997"]
[Result "0-1"]
[Round "11"]
[TimeControl "180+1"]
[Date "2023.08.22"]
[WhiteClock "0:00:00"]
[BlackClock "0:00:07"]
[Board "2"]

1. b3 {[%clk 0:03:00]}  d5 {[%clk 0:02:58]} 2. Bb2 {[%clk 0:03:01]}  Bf5 {[%clk 0:02:58]} 3. Nf3 {[%clk 0:02:59]}  e6 {[%clk 0:02:57]} 4. g3 {[%clk 0:02:58]}  h6 {[%clk 0:02:56]} 5. Bg2 {[%clk 0:02:58]}  Nf6 {[%clk 0:02:56]} 6. O-O {[%clk 0:02:58]}  Be7 {[%clk 0:02:56]} 7. d3 {[%clk 0:02:59]}  O-O {[%clk 0:02:57]} 8. Nbd2 {[%clk 0:02:59]}  Bh7 {[%clk 0:02:56]} 9. Ne5 {[%clk 0:02:58]}  a5 {[%clk 0:02:55]} 10. a3 {[%clk 0:02:57]}  Nbd7 {[%clk 0:02:45]} 11. Nxd7 {[%clk 0:02:56]}  Nxd7 {[%clk 0:02:45]} 12. e4 {[%clk 0:02:52]}  Bf6 {[%clk 0:02:44]} 13. d4 {[%clk 0:02:49]}  c6 {[%clk 0:02:38]} 14. c4 {[%clk 0:02:47]}  dxe4 {[%clk 0:02:31]} 15. Nxe4 {[%clk 0:02:46]}  Bxe4 {[%clk 0:02:29]} 16. Bxe4 {[%clk 0:02:47]}  Qc7 {[%clk 0:02:20]} 17. Qf3 {[%clk 0:02:35]}  Rfd8 {[%clk 0:02:19]} 18. Rad1 {[%clk 0:02:34]}  Rac8 {[%clk 0:02:19]} 19. Bc1 {[%clk 0:02:28]}  Qb6 {[%clk 0:02:12]} 20. c5 {[%clk 0:02:21]}  Qc7 {[%clk 0:02:04]} 21. b4 {[%clk 0:02:05]}  axb4 {[%clk 0:02:04]} 22. axb4 {[%clk 0:02:05]}  Bg5 {[%clk 0:01:49]} 23. Bb2 {[%clk 0:01:51]}  Nf8 {[%clk 0:01:49]} 24. b5 {[%clk 0:01:45]}  cxb5 {[%clk 0:01:39]} 25. Bxb7 {[%clk 0:01:46]}  Rb8 {[%clk 0:01:40]} 26. c6 {[%clk 0:01:41]}  Bf6 {[%clk 0:01:35]} 27. Qe4 {[%clk 0:01:36]}  Ng6 {[%clk 0:01:34]} 28. Bc1 {[%clk 0:01:35]}  Rd5 {[%clk 0:01:30]} 29. Be3 {[%clk 0:01:31]}  b4 {[%clk 0:01:22]} 30. Rb1 {[%clk 0:01:29]}  Rxb7 {[%clk 0:01:16]} 31. cxb7 {[%clk 0:01:29]}  Qxb7 {[%clk 0:01:17]} 32. Rfc1 {[%clk 0:01:22]}  Be7 {[%clk 0:01:17]} 33. h4 {[%clk 0:01:19]}  Bd6 {[%clk 0:01:18]} 34. Rc4 {[%clk 0:01:14]}  Qa6 {[%clk 0:01:07]} 35. Qc2 {[%clk 0:01:08]}  Ne7 {[%clk 0:00:42]} 36. Bd2 {[%clk 0:01:08]}  Rb5 {[%clk 0:00:34]} 37. Bxb4 {[%clk 0:01:01]}  Qb7 {[%clk 0:00:34]} 38. Qd2 {[%clk 0:00:33]}  Nd5 {[%clk 0:00:32]} 39. Bxd6 {[%clk 0:00:34]}  Rxb1+ {[%clk 0:00:31]} 40. Rc1 {[%clk 0:00:35]}  Rxc1+ {[%clk 0:00:25]} 41. Qxc1 {[%clk 0:00:36]}  Qb3 {[%clk 0:00:25]} 42. Bf4 {[%clk 0:00:26]}  Qd3 {[%clk 0:00:20]} 43. Qd2 {[%clk 0:00:25]}  Qe4 {[%clk 0:00:21]} 44. Be3 {[%clk 0:00:22]}  h5 {[%clk 0:00:19]} 45. Qc1 {[%clk 0:00:20]}  Kh7 {[%clk 0:00:19]} 46. Qd2 {[%clk 0:00:20]}  Kg6 {[%clk 0:00:19]} 47. Kh2 {[%clk 0:00:18]}  f6 {[%clk 0:00:17]} 48. Qe2 {[%clk 0:00:16]}  Ne7 {[%clk 0:00:14]} 49. Qb5 {[%clk 0:00:11]}  Nc6 {[%clk 0:00:07]} 50. Qb7 {[%clk 0:00:07]}  Qd5 {[%clk 0:00:05]} 51. Qa8 {[%clk 0:00:06]}  Kf7 {[%clk 0:00:04]} 52. Qb7+ {[%clk 0:00:06]}  Ne7 {[%clk 0:00:04]} 53. Qxd5 {[%clk 0:00:04]}  Nxd5 {[%clk 0:00:05]} 54. Bd2 {[%clk 0:00:05]}  Kg6 {[%clk 0:00:05]} 55. Kg2 {[%clk 0:00:05]}  Kf5 {[%clk 0:00:05]} 56. Kf3 {[%clk 0:00:06]}  g5 {[%clk 0:00:05]} 57. Bc1 {[%clk 0:00:04]}  g4+ {[%clk 0:00:05]} 58. Ke2 {[%clk 0:00:05]}  Ke4 {[%clk 0:00:06]} 59. Bb2 {[%clk 0:00:05]}  f5 {[%clk 0:00:06]} 60. Bc1 {[%clk 0:00:03]}  Kxd4 {[%clk 0:00:05]} 61. Bg5 {[%clk 0:00:04]}  Ke4 {[%clk 0:00:06]} 62. Bd2 {[%clk 0:00:04]}  e5 {[%clk 0:00:06]} 63. Bc1 {[%clk 0:00:05]}  f4 {[%clk 0:00:06]} 64. Bd2 {[%clk 0:00:06]}  Ne7 {[%clk 0:00:06]} 65. Kf1 {[%clk 0:00:05]}  Kf3 {[%clk 0:00:06]} 66. gxf4 {[%clk 0:00:05]}  exf4 {[%clk 0:00:07]} 67. Bb4 {[%clk 0:00:02]}  Nf5 {[%clk 0:00:07]} 68. Be7 {[%clk 0:00:00]}  Nxe7 {[%clk 0:00:07]} 0-1


[Site "https://www.chess.com"]

[Event "Titled Tuesday Blitz August 22 Early 2023"]
[White "Dardha, Daniel"]
[Black "Nakamura, Hikaru"]
[WhiteFideId "240990"]
[BlackFideId "2016192"]
[WhiteElo "2955"]
[BlackElo "3217"]
[Result "0-1"]
[Round "11"]
[TimeControl "180+1"]
[Date "2023.08.22"]
[WhiteClock "0:00:00"]
[BlackClock "0:00:19"]
[Board "4"]

1. d4 {[%clk 0:03:00]}  Nf6 {[%clk 0:02:59]} 2. Bg5 {[%clk 0:02:58]}  c5 {[%clk 0:02:50]} 3. dxc5 {[%clk 0:02:57]}  Qa5+ {[%clk 0:02:45]} 4. Qd2 {[%clk 0:02:48]}  Qxc5 {[%clk 0:02:45]} 5. Nc3 {[%clk 0:02:47]}  d6 {[%clk 0:02:45]} 6. e4 {[%clk 0:02:46]}  Nbd7 {[%clk 0:02:39]} 7. O-O-O {[%clk 0:02:45]}  a6 {[%clk 0:02:38]} 8. Be3 {[%clk 0:02:44]}  Qc7 {[%clk 0:02:36]} 9. f3 {[%clk 0:02:32]}  h5 {[%clk 0:02:24]} 10. Nh3 {[%clk 0:02:27]}  e6 {[%clk 0:02:22]} 11. Ng5 {[%clk 0:02:18]}  b5 {[%clk 0:02:22]} 12. a3 {[%clk 0:02:02]}  Bb7 {[%clk 0:02:21]} 13. h4 {[%clk 0:01:59]}  Rc8 {[%clk 0:02:17]} 14. Kb1 {[%clk 0:01:58]}  Be7 {[%clk 0:02:17]} 15. Be2 {[%clk 0:01:56]}  Ne5 {[%clk 0:02:17]} 16. Bd4 {[%clk 0:01:40]}  Nc6 {[%clk 0:02:05]} 17. Be3 {[%clk 0:01:27]}  b4 {[%clk 0:01:51]} 18. axb4 {[%clk 0:01:25]}  Nxb4 {[%clk 0:01:52]} 19. Qd4 {[%clk 0:00:58]}  d5 {[%clk 0:01:43]} 20. e5 {[%clk 0:00:41]}  Nd7 {[%clk 0:01:33]} 21. f4 {[%clk 0:00:38]}  Qa5 {[%clk 0:01:18]} 22. f5 {[%clk 0:00:37]}  Nc5 {[%clk 0:00:47]} 23. fxe6 {[%clk 0:00:35]}  fxe6 {[%clk 0:00:48]} 24. Rhf1 {[%clk 0:00:32]}  Na4 {[%clk 0:00:48]} 25. Bd2 {[%clk 0:00:12]}  Nxc3+ {[%clk 0:00:41]} 26. Bxc3 {[%clk 0:00:12]}  Qa2+ {[%clk 0:00:39]} 27. Kc1 {[%clk 0:00:12]}  Qa4 {[%clk 0:00:40]} 28. Bd3 {[%clk 0:00:07]}  Bc5 {[%clk 0:00:33]} 29. Bg6+ {[%clk 0:00:04]}  Kd7 {[%clk 0:00:34]} 30. Rf7+ {[%clk 0:00:04]}  Kc6 {[%clk 0:00:34]} 31. Nxe6 {[%clk 0:00:02]}  Bxd4 {[%clk 0:00:30]} 32. Rxd4 {[%clk 0:00:02]}  Na2+ {[%clk 0:00:19]} 33. Kd2 {[%clk 0:00:02]}  Nxc3 {[%clk 0:00:20]} 34. Rxa4 {[%clk 0:00:01]}  Nxa4 {[%clk 0:00:20]} 35. Nd4+ {[%clk 0:00:02]}  Kb6 {[%clk 0:00:21]} 36. b3 {[%clk 0:00:03]}  Nc5 {[%clk 0:00:21]} 37. e6 {[%clk 0:00:04]}  Rhe8 {[%clk 0:00:20]} 38. Rxg7 {[%clk 0:00:00]}  Nxe6 {[%clk 0:00:19]} 0-1


[Site "https://www.chess.com"]

[Event "Titled Tuesday Blitz August 22 Early 2023"]
[White "Ibrahimli, Murad"]
[Black "Martinez Alcantara, Jose Eduardo"]
[WhiteFideId "13410229"]
[BlackFideId "3805662"]
[WhiteElo "2880"]
[BlackElo "3031"]
[Result "1-0"]
[Round "11"]
[TimeControl "180+1"]
[Date "2023.08.22"]
[WhiteClock "0:00:15"]
[BlackClock "0:00:00"]
[Board "9"]

1. c4 {[%clk 0:02:59]}  Nf6 {[%clk 0:03:00]} 2. Nc3 {[%clk 0:02:58]}  g6 {[%clk 0:03:00]} 3. e4 {[%clk 0:02:59]}  d6 {[%clk 0:03:00]} 4. d4 {[%clk 0:02:59]}  Bg7 {[%clk 0:03:01]} 5. Be2 {[%clk 0:03:00]}  O-O {[%clk 0:03:02]} 6. Be3 {[%clk 0:03:00]}  Nbd7 {[%clk 0:03:00]} 7. Qd2 {[%clk 0:03:00]}  e5 {[%clk 0:03:00]} 8. d5 {[%clk 0:02:59]}  Nc5 {[%clk 0:03:00]} 9. f3 {[%clk 0:02:58]}  a5 {[%clk 0:03:01]} 10. g4 {[%clk 0:02:56]}  c6 {[%clk 0:02:57]} 11. Nh3 {[%clk 0:02:54]}  cxd5 {[%clk 0:02:19]} 12. cxd5 {[%clk 0:02:52]}  a4 {[%clk 0:02:20]} 13. Nf2 {[%clk 0:02:51]}  Bd7 {[%clk 0:02:18]} 14. Nb5 {[%clk 0:02:39]}  Qb6 {[%clk 0:02:05]} 15. Na3 {[%clk 0:02:37]}  Qc7 {[%clk 0:02:04]} 16. Rc1 {[%clk 0:02:36]}  b6 {[%clk 0:02:04]} 17. O-O {[%clk 0:02:35]}  Rfc8 {[%clk 0:02:02]} 18. Rc2 {[%clk 0:02:14]}  Qb7 {[%clk 0:01:54]} 19. Nb5 {[%clk 0:02:11]}  Ne8 {[%clk 0:01:49]} 20. Rfc1 {[%clk 0:02:10]}  Kh8 {[%clk 0:01:34]} 21. Kh1 {[%clk 0:02:00]}  f5 {[%clk 0:01:34]} 22. gxf5 {[%clk 0:01:59]}  gxf5 {[%clk 0:01:35]} 23. exf5 {[%clk 0:01:53]}  Bxf5 {[%clk 0:01:31]} 24. Rc4 {[%clk 0:01:54]}  Qd7 {[%clk 0:01:24]} 25. Rh4 {[%clk 0:01:43]}  Nf6 {[%clk 0:01:22]} 26. Rg1 {[%clk 0:01:39]}  Rg8 {[%clk 0:01:22]} 27. Nc3 {[%clk 0:01:38]}  Raf8 {[%clk 0:01:21]} 28. Bb5 {[%clk 0:01:31]}  Qf7 {[%clk 0:01:21]} 29. Bc4 {[%clk 0:01:25]}  e4 {[%clk 0:01:14]} 30. fxe4 {[%clk 0:01:06]}  Bg6 {[%clk 0:01:06]} 31. e5 {[%clk 0:01:06]}  dxe5 {[%clk 0:01:05]} 32. b3 {[%clk 0:01:03]}  axb3 {[%clk 0:01:04]} 33. axb3 {[%clk 0:01:04]}  Bf5 {[%clk 0:00:33]} 34. Qe2 {[%clk 0:00:55]}  Qd7 {[%clk 0:00:26]} 35. Bxc5 {[%clk 0:00:44]}  bxc5 {[%clk 0:00:26]} 36. Nfe4 {[%clk 0:00:42]}  Nxe4 {[%clk 0:00:23]} 37. Nxe4 {[%clk 0:00:43]}  Bf6 {[%clk 0:00:17]} 38. Nxf6 {[%clk 0:00:43]}  Rxg1+ {[%clk 0:00:17]} 39. Kxg1 {[%clk 0:00:42]}  Rxf6 {[%clk 0:00:16]} 40. Qxe5 {[%clk 0:00:24]}  Qg7+ {[%clk 0:00:16]} 41. Kh1 {[%clk 0:00:24]}  Bc2 {[%clk 0:00:06]} 42. Rf4 {[%clk 0:00:20]}  Rxf4 {[%clk 0:00:04]} 43. Qxf4 {[%clk 0:00:21]}  Qa1+ {[%clk 0:00:04]} 44. Kg2 {[%clk 0:00:21]}  Qg7+ {[%clk 0:00:04]} 45. Kf2 {[%clk 0:00:21]}  Qg6 {[%clk 0:00:01]} 46. Qe5+ {[%clk 0:00:20]}  Qg7 {[%clk 0:00:01]} 47. Qxg7+ {[%clk 0:00:17]}  Kxg7 {[%clk 0:00:02]} 48. Ke3 {[%clk 0:00:14]}  Kf6 {[%clk 0:00:02]} 49. Kf4 {[%clk 0:00:15]}  h6 {[%clk 0:00:02]} 50. d6 {[%clk 0:00:15]}  Bd1 {[%clk 0:00:02]} 51. Ke4 {[%clk 0:00:14]}  Bg4 {[%clk 0:00:00]} 52. Kd5 {[%clk 0:00:15]} 1-0


[Site "https://www.chess.com"]

[Event "Titled Tuesday Blitz August 22 Early 2023"]
[White "Bachmann, Axel"]
[Black "Andreikin, Dmitry"]
[WhiteFideId "3700488"]
[BlackFideId "4158814"]
[WhiteElo "2869"]
[BlackElo "2996"]
[Result "1/2-1/2"]
[Round "11"]
[TimeControl "180+1"]
[Date "2023.08.22"]
[WhiteClock "0:00:08"]
[BlackClock "0:00:08"]
[Board "10"]

1. e4 {[%clk 0:03:00]}  e5 {[%clk 0:02:57]} 2. Bc4 {[%clk 0:02:57]}  Nf6 {[%clk 0:02:56]} 3. d3 {[%clk 0:02:57]}  Nc6 {[%clk 0:02:57]} 4. Nc3 {[%clk 0:02:58]}  Bb4 {[%clk 0:02:56]} 5. Ne2 {[%clk 0:02:57]}  d5 {[%clk 0:02:54]} 6. exd5 {[%clk 0:02:58]}  Nxd5 {[%clk 0:02:54]} 7. O-O {[%clk 0:02:58]}  Be6 {[%clk 0:02:53]} 8. Bxd5 {[%clk 0:02:57]}  Bxd5 {[%clk 0:02:53]} 9. f4 {[%clk 0:02:57]}  f6 {[%clk 0:02:43]} 10. fxe5 {[%clk 0:02:45]}  Nxe5 {[%clk 0:02:44]} 11. Nxd5 {[%clk 0:02:44]}  Qxd5 {[%clk 0:02:44]} 12. d4 {[%clk 0:02:44]}  Ng6 {[%clk 0:02:36]} 13. c3 {[%clk 0:02:40]}  Bd6 {[%clk 0:02:33]} 14. Nf4 {[%clk 0:02:05]}  Bxf4 {[%clk 0:02:25]} 15. Bxf4 {[%clk 0:02:05]}  O-O-O {[%clk 0:02:18]} 16. Bg3 {[%clk 0:02:00]}  h5 {[%clk 0:02:15]} 17. Qd3 {[%clk 0:01:55]}  Qf7 {[%clk 0:02:04]} 18. h3 {[%clk 0:01:50]}  h4 {[%clk 0:02:01]} 19. Bh2 {[%clk 0:01:46]}  Rh5 {[%clk 0:01:52]} 20. Rae1 {[%clk 0:01:41]}  a6 {[%clk 0:01:36]} 21. Qe4 {[%clk 0:01:26]}  Rg5 {[%clk 0:01:27]} 22. Rf5 {[%clk 0:01:21]}  Rxf5 {[%clk 0:01:22]} 23. Qxf5+ {[%clk 0:01:22]}  Kb8 {[%clk 0:01:23]} 24. Qc5 {[%clk 0:01:22]}  Rd7 {[%clk 0:01:15]} 25. b4 {[%clk 0:01:07]}  Re7 {[%clk 0:00:57]} 26. Rd1 {[%clk 0:00:51]}  Qxa2 {[%clk 0:00:52]} 27. d5 {[%clk 0:00:46]}  Qe2 {[%clk 0:00:41]} 28. Qd4 {[%clk 0:00:43]}  Re4 {[%clk 0:00:34]} 29. Qd3 {[%clk 0:00:24]}  Qxd3 {[%clk 0:00:31]} 30. Rxd3 {[%clk 0:00:25]}  Ne5 {[%clk 0:00:27]} 31. Bxe5 {[%clk 0:00:23]}  Rxe5 {[%clk 0:00:28]} 32. Rd4 {[%clk 0:00:22]}  g5 {[%clk 0:00:27]} 33. Kf2 {[%clk 0:00:20]}  b5 {[%clk 0:00:26]} 34. d6 {[%clk 0:00:20]}  Kc8 {[%clk 0:00:22]} 35. Kf3 {[%clk 0:00:19]}  f5 {[%clk 0:00:18]} 36. c4 {[%clk 0:00:16]}  Re4 {[%clk 0:00:11]} 37. Rxe4 {[%clk 0:00:13]}  fxe4+ {[%clk 0:00:11]} 38. Kxe4 {[%clk 0:00:13]}  bxc4 {[%clk 0:00:02]} 39. dxc7 {[%clk 0:00:13]}  Kxc7 {[%clk 0:00:03]} 40. Kd4 {[%clk 0:00:14]}  Kd6 {[%clk 0:00:03]} 41. Kxc4 {[%clk 0:00:14]}  Ke5 {[%clk 0:00:03]} 42. Kc5 {[%clk 0:00:14]}  Kf4 {[%clk 0:00:03]} 43. Kb6 {[%clk 0:00:14]}  Kg3 {[%clk 0:00:04]} 44. Kxa6 {[%clk 0:00:14]}  Kxg2 {[%clk 0:00:05]} 45. b5 {[%clk 0:00:15]}  g4 {[%clk 0:00:05]} 46. b6 {[%clk 0:00:13]}  gxh3 {[%clk 0:00:06]} 47. b7 {[%clk 0:00:13]}  h2 {[%clk 0:00:06]} 48. b8=Q {[%clk 0:00:13]}  h1=Q {[%clk 0:00:07]} 49. Qb7+ {[%clk 0:00:11]}  Kh2 {[%clk 0:00:08]} 50. Qc7+ {[%clk 0:00:11]}  Kh3 {[%clk 0:00:08]} 51. Qd7+ {[%clk 0:00:11]}  Kg3 {[%clk 0:00:08]} 52. Qd6+ {[%clk 0:00:11]}  Kg4 {[%clk 0:00:07]} 53. Qg6+ {[%clk 0:00:10]}  Kf4 {[%clk 0:00:07]} 54. Qf6+ {[%clk 0:00:10]}  Ke3 {[%clk 0:00:08]} 55. Qc3+ {[%clk 0:00:10]}  Ke2 {[%clk 0:00:07]} 56. Qc2+ {[%clk 0:00:09]}  Kf1 {[%clk 0:00:05]} 57. Qd1+ {[%clk 0:00:09]}  Kg2 {[%clk 0:00:06]} 58. Qd5+ {[%clk 0:00:09]}  Kh2 {[%clk 0:00:06]} 59. Qe5+ {[%clk 0:00:09]}  Kh3 {[%clk 0:00:04]} 60. Qf5+ {[%clk 0:00:09]}  Kg3 {[%clk 0:00:05]} 61. Qe5+ {[%clk 0:00:07]}  Kg4 {[%clk 0:00:05]} 62. Qe6+ {[%clk 0:00:07]}  Kg5 {[%clk 0:00:05]} 63. Qe5+ {[%clk 0:00:06]}  Kg6 {[%clk 0:00:05]} 64. Qe6+ {[%clk 0:00:06]}  Kg5 {[%clk 0:00:05]} 65. Qe5+ {[%clk 0:00:06]}  Kg4 {[%clk 0:00:06]} 66. Qe6+ {[%clk 0:00:07]}  Kg3 {[%clk 0:00:06]} 67. Qe5+ {[%clk 0:00:07]}  Kf2 {[%clk 0:00:07]} 68. Qd4+ {[%clk 0:00:07]}  Ke2 {[%clk 0:00:08]} 69. Qc4+ {[%clk 0:00:07]}  Kd2 {[%clk 0:00:08]} 70. Qd4+ {[%clk 0:00:07]}  Kc2 {[%clk 0:00:07]} 71. Qc4+ {[%clk 0:00:07]}  Kd2 {[%clk 0:00:08]} 72. Qd4+ {[%clk 0:00:07]}  Ke2 {[%clk 0:00:08]} 73. Qc4+ {[%clk 0:00:08]}  Ke3 {[%clk 0:00:09]} 74. Qc3+ {[%clk 0:00:08]}  Kf4 {[%clk 0:00:09]} 75. Qf6+ {[%clk 0:00:08]}  Kg4 {[%clk 0:00:06]} 76. Qg6+ {[%clk 0:00:07]}  Kh3 {[%clk 0:00:06]} 77. Qf5+ {[%clk 0:00:07]}  Kg3 {[%clk 0:00:06]} 78. Qg5+ {[%clk 0:00:07]}  Kf2 {[%clk 0:00:07]} 79. Qd2+ {[%clk 0:00:07]}  Kf1 {[%clk 0:00:06]} 80. Qd1+ {[%clk 0:00:07]}  Kg2 {[%clk 0:00:07]} 81. Qd5+ {[%clk 0:00:08]}  Kh2 {[%clk 0:00:07]} 82. Qe5+ {[%clk 0:00:08]}  Kh3 {[%clk 0:00:08]} 83. Qf5+ {[%clk 0:00:08]} 1/2-1/2


[Site "https://www.chess.com"]

[Event "Titled Tuesday Blitz August 22 Early 2023"]
[White "Kravtsiv, Martyn"]
[Black "CrazyAdvenTures"]
[WhiteFideId "14113147"]
[WhiteElo "2883"]
[BlackElo "2712"]
[Result "1-0"]
[Round "11"]
[TimeControl "180+1"]
[Date "2023.08.22"]
[WhiteClock "0:00:09"]
[BlackClock "0:00:00"]
[Board "13"]

1. e4 {[%clk 0:03:00]}  c5 {[%clk 0:02:58]} 2. Nf3 {[%clk 0:03:01]}  e6 {[%clk 0:02:58]} 3. d4 {[%clk 0:03:00]}  cxd4 {[%clk 0:02:58]} 4. Nxd4 {[%clk 0:03:00]}  a6 {[%clk 0:02:54]} 5. Be2 {[%clk 0:02:59]}  Nf6 {[%clk 0:02:52]} 6. Nc3 {[%clk 0:02:58]}  d6 {[%clk 0:02:49]} 7. O-O {[%clk 0:02:56]}  Be7 {[%clk 0:02:50]} 8. f4 {[%clk 0:02:55]}  O-O {[%clk 0:02:48]} 9. Be3 {[%clk 0:02:54]}  Nc6 {[%clk 0:02:44]} 10. Kh1 {[%clk 0:02:49]}  Bd7 {[%clk 0:02:41]} 11. Qe1 {[%clk 0:02:47]}  Rc8 {[%clk 0:02:37]} 12. Qg3 {[%clk 0:02:46]}  e5 {[%clk 0:02:05]} 13. Nxc6 {[%clk 0:02:28]}  Bxc6 {[%clk 0:02:06]} 14. fxe5 {[%clk 0:02:28]}  Nxe4 {[%clk 0:02:05]} 15. Nxe4 {[%clk 0:02:13]}  Bxe4 {[%clk 0:02:06]} 16. Bd4 {[%clk 0:01:56]}  Bg6 {[%clk 0:01:51]} 17. c3 {[%clk 0:01:55]}  dxe5 {[%clk 0:01:51]} 18. Bxe5 {[%clk 0:01:56]}  Qd2 {[%clk 0:01:51]} 19. Bg4 {[%clk 0:01:55]}  Rc4 {[%clk 0:01:35]} 20. Rf2 {[%clk 0:01:37]}  Qd8 {[%clk 0:01:12]} 21. Rd1 {[%clk 0:01:13]}  Qa5 {[%clk 0:00:20]} 22. h3 {[%clk 0:01:12]}  Bh4 {[%clk 0:00:18]} 23. Qxh4 {[%clk 0:01:04]}  Qxe5 {[%clk 0:00:19]} 24. Rd8 {[%clk 0:00:34]}  Re4 {[%clk 0:00:18]} 25. Rxf8+ {[%clk 0:00:33]}  Kxf8 {[%clk 0:00:19]} 26. Qd8+ {[%clk 0:00:32]}  Qe8 {[%clk 0:00:19]} 27. Qd6+ {[%clk 0:00:33]}  Kg8 {[%clk 0:00:15]} 28. Rd2 {[%clk 0:00:31]}  h5 {[%clk 0:00:15]} 29. Bf3 {[%clk 0:00:31]}  Re1+ {[%clk 0:00:15]} 30. Kh2 {[%clk 0:00:31]}  Qe3 {[%clk 0:00:15]} 31. Qb8+ {[%clk 0:00:26]}  Kh7 {[%clk 0:00:15]} 32. Rd8 {[%clk 0:00:26]}  Bf5 {[%clk 0:00:03]} 33. Rh8+ {[%clk 0:00:25]}  Kg6 {[%clk 0:00:04]} 34. Qd6+ {[%clk 0:00:21]}  Be6 {[%clk 0:00:03]} 35. Bxh5+ {[%clk 0:00:20]}  Kf6 {[%clk 0:00:04]} 36. Qd8+ {[%clk 0:00:19]}  Ke5 {[%clk 0:00:04]} 37. Qc7+ {[%clk 0:00:18]}  Kf6 {[%clk 0:00:04]} 38. Qd8+ {[%clk 0:00:18]}  Ke5 {[%clk 0:00:04]} 39. Qc7+ {[%clk 0:00:12]}  Kf6 {[%clk 0:00:04]} 40. Bf3 {[%clk 0:00:13]}  Qg1+ {[%clk 0:00:04]} 41. Kg3 {[%clk 0:00:13]}  Re3 {[%clk 0:00:05]} 42. Qf4+ {[%clk 0:00:12]}  Ke7 {[%clk 0:00:04]} 43. Qg5+ {[%clk 0:00:13]}  f6 {[%clk 0:00:03]} 44. Qxg7+ {[%clk 0:00:13]}  Bf7 {[%clk 0:00:04]} 45. Qg4 {[%clk 0:00:08]}  Qe1+ {[%clk 0:00:00]} 46. Kh2 {[%clk 0:00:09]} 1-0


[Site "https://www.chess.com"]

[Event "Titled Tuesday Blitz August 22 Early 2023"]
[White "Naroditsky, Daniel"]
[Black "Yanchenko, Roman"]
[WhiteFideId "2026961"]
[BlackFideId "4137329"]
[WhiteElo "3169"]
[BlackElo "2832"]
[Result "1-0"]
[Round "11"]
[TimeControl "180+1"]
[Date "2023.08.22"]
[WhiteClock "0:00:36"]
[BlackClock "0:00:00"]
[Board "14"]

1. d4 {[%clk 0:03:00]}  d5 {[%clk 0:02:59]} 2. Nc3 {[%clk 0:03:01]}  Nf6 {[%clk 0:02:59]} 3. Bf4 {[%clk 0:03:01]}  c6 {[%clk 0:02:59]} 4. e3 {[%clk 0:03:02]}  Bf5 {[%clk 0:02:53]} 5. Nf3 {[%clk 0:03:02]}  h6 {[%clk 0:02:50]} 6. Bd3 {[%clk 0:03:02]}  Bxd3 {[%clk 0:02:50]} 7. cxd3 {[%clk 0:03:03]}  e6 {[%clk 0:02:50]} 8. h3 {[%clk 0:03:01]}  Nbd7 {[%clk 0:02:50]} 9. Qb3 {[%clk 0:03:00]}  Qb6 {[%clk 0:02:50]} 10. Qc2 {[%clk 0:03:01]}  Be7 {[%clk 0:02:47]} 11. O-O {[%clk 0:03:01]}  O-O {[%clk 0:02:47]} 12. e4 {[%clk 0:03:02]}  Rac8 {[%clk 0:02:42]} 13. e5 {[%clk 0:03:00]}  Nh7 {[%clk 0:02:42]} 14. Qd2 {[%clk 0:02:57]}  c5 {[%clk 0:02:39]} 15. dxc5 {[%clk 0:02:57]}  Nxc5 {[%clk 0:02:37]} 16. Rfe1 {[%clk 0:02:52]}  Qa6 {[%clk 0:02:37]} 17. Rad1 {[%clk 0:02:52]}  Na4 {[%clk 0:02:36]} 18. Nxa4 {[%clk 0:02:46]}  Qxa4 {[%clk 0:02:37]} 19. b3 {[%clk 0:02:47]}  Qb4 {[%clk 0:02:35]} 20. Qe3 {[%clk 0:02:47]}  Rc2 {[%clk 0:02:25]} 21. Rd2 {[%clk 0:02:29]}  Rxd2 {[%clk 0:02:05]} 22. Qxd2 {[%clk 0:02:27]}  Qxd2 {[%clk 0:02:02]} 23. Bxd2 {[%clk 0:02:28]}  Rc8 {[%clk 0:02:02]} 24. Rc1 {[%clk 0:02:15]}  Rxc1+ {[%clk 0:02:02]} 25. Bxc1 {[%clk 0:02:16]}  Nf8 {[%clk 0:02:03]} 26. Kf1 {[%clk 0:02:13]}  Nd7 {[%clk 0:02:03]} 27. d4 {[%clk 0:02:13]}  f6 {[%clk 0:02:03]} 28. exf6 {[%clk 0:02:13]}  Bxf6 {[%clk 0:02:03]} 29. Bf4 {[%clk 0:02:13]}  Kf7 {[%clk 0:01:58]} 30. Ke2 {[%clk 0:02:13]}  a6 {[%clk 0:01:56]} 31. Kd3 {[%clk 0:02:09]}  Ke8 {[%clk 0:01:48]} 32. h4 {[%clk 0:02:05]}  h5 {[%clk 0:01:48]} 33. g3 {[%clk 0:02:05]}  Nf8 {[%clk 0:01:38]} 34. Ne5 {[%clk 0:01:57]}  g6 {[%clk 0:01:22]} 35. Ke3 {[%clk 0:01:49]}  Bg7 {[%clk 0:01:15]} 36. f3 {[%clk 0:01:47]}  Bf6 {[%clk 0:01:15]} 37. a4 {[%clk 0:01:45]}  Bg7 {[%clk 0:00:54]} 38. g4 {[%clk 0:01:46]}  Bf6 {[%clk 0:00:52]} 39. Bg3 {[%clk 0:01:46]}  Be7 {[%clk 0:00:48]} 40. Nd3 {[%clk 0:01:42]}  Nd7 {[%clk 0:00:48]} 41. gxh5 {[%clk 0:01:41]}  gxh5 {[%clk 0:00:41]} 42. Nf4 {[%clk 0:01:42]}  Kf7 {[%clk 0:00:30]} 43. Nxh5 {[%clk 0:01:42]}  Nf8 {[%clk 0:00:23]} 44. Nf4 {[%clk 0:01:35]}  Ng6 {[%clk 0:00:23]} 45. h5 {[%clk 0:01:24]}  Nxf4 {[%clk 0:00:18]} 46. Kxf4 {[%clk 0:01:25]}  Bf6 {[%clk 0:00:18]} 47. Bf2 {[%clk 0:01:25]}  Kg7 {[%clk 0:00:18]} 48. Kg4 {[%clk 0:01:25]}  Kh7 {[%clk 0:00:18]} 49. f4 {[%clk 0:01:23]}  b5 {[%clk 0:00:18]} 50. axb5 {[%clk 0:01:21]}  axb5 {[%clk 0:00:19]} 51. Be3 {[%clk 0:01:13]}  Kg7 {[%clk 0:00:17]} 52. f5 {[%clk 0:01:06]}  e5 {[%clk 0:00:17]} 53. h6+ {[%clk 0:01:06]}  Kf7 {[%clk 0:00:18]} 54. dxe5 {[%clk 0:00:55]}  Bxe5 {[%clk 0:00:19]} 55. Bg5 {[%clk 0:00:54]}  Bc3 {[%clk 0:00:10]} 56. Kf3 {[%clk 0:00:35]}  Bb2 {[%clk 0:00:10]} 57. Ke2 {[%clk 0:00:35]}  Bc3 {[%clk 0:00:10]} 58. Kd3 {[%clk 0:00:35]}  Bb2 {[%clk 0:00:11]} 59. Be3 {[%clk 0:00:35]}  Kg8 {[%clk 0:00:05]} 60. Bd4 {[%clk 0:00:35]}  Bc1 {[%clk 0:00:00]} 61. Bg7 {[%clk 0:00:36]} 1-0


[Site "https://www.chess.com"]